[Event "XXVII RUS-chT Women 2020"]
[Site "Sochi"]
[Date "2020.11.21"]
[Round "3.20"]
[White "Absalyamova, Karina"]
[Black "Mukhina, Jana"]
[Result "0-1"]
[ECO "D07"]
[WhiteElo "1884"]
[BlackElo "2012"]
[Annotator "NA"]
[PlyCount "40"]
[EventDate "2020.11.19"]
[EventType "team-tourn"]
[EventCountry "RUS"]
[SourceTitle "playchess.com"]
[Source "ChessBase"]
[SourceQuality "1"]
[TimeControl "40/5400+30:1800+30"]

1. d4 {[%emt 0:00:00]} d5 {[%emt 0:01:06]} 2. c4 {[%emt 0:00:00]} Nc6 {[%emt 0:00:15]} 3. Nf3 {[%emt 0:04:06]} Bg4 {[%emt 0:00:09]} 4. e3 {[%emt 0:00:24]} e5 {[%emt 0:01:52]} 5. dxe5 {[%emt 0:07:52]} dxc4 {[%emt 0:04:59]} 6. Qa4 {[%emt 0:08:35]} Bxf3 {[%emt 0:05:15]} 7. gxf3 {[%emt 0:00:04]} Qd5 {[%emt 0:00:30]} 8. e4 {[%emt 0:07:46]} Qxe5 {[%emt 0:02:50]} 9. Bxc4 {[%emt 0:01:36]} Bb4+ {[%emt 0:03:26]} 10. Nd2 {[%emt 0:07:13]} Bxd2+ {[%emt 0:05:58]} 11. Bxd2 {[%emt 0:00:05]} Qxb2 {[%emt 0:00:22]} 12. Rc1 {[%emt 0:07:59]} Rd8 {[%emt 0:15:23]} 13. Rc2 {[%emt 0:03:11]} Qf6 {[%emt 0:07:08]} 14. Be2 {[%emt 0:27:00]} Nge7 {[%emt 0:05:12]} 15. O-O {[%emt 0:04:31]} Rxd2 {[%emt 0:01:08]} 16. Rxd2 {[%emt 0:04:34]} Qg5+ {[%emt 0:00:09]} 17. Kh1 {[%emt 0:00:01]} Qxd2 {[%emt 0:00:12]} 18. Bc4 {[%emt 0:00:18]} Qc3 {[%emt 0:02:58]} 19. Kg2 {[%emt 0:01:33]} Ng6 {[%emt 0:02:27]} 20. Be2 {[%emt 0:01:50]} Nf4+ {[%emt 0:00:08]} 0-1

[Event "XXVII RUS-chT Women 2020"]
[Site "Sochi"]
[Date "2020.11.21"]
[Round "3.21"]
[White "Elnikova, Milena"]
[Black "Kochukova, Anna"]
[Result "0-1"]
[ECO "B20"]
[WhiteElo "1435"]
[BlackElo "2111"]
[Annotator "NA"]
[PlyCount "70"]
[EventDate "2020.11.19"]
[EventType "team-tourn"]
[EventCountry "RUS"]
[SourceTitle "playchess.com"]
[Source "ChessBase"]
[SourceQuality "1"]
[TimeControl "40/5400+30:1800+30"]

1. e4 {[%emt 0:00:00]} c5 {[%emt 0:00:00]} 2. d3 {[%emt 0:00:14]} Nc6 {[%emt 0:00:11]} 3. Nf3 {[%emt 0:00:26]} d6 {[%emt 0:01:24]} 4. Nbd2 {[%emt 0:00:37]} g6 {[%emt 0:01:03]} 5. g3 {[%emt 0:00:31]} Bg7 {[%emt 0:00:16]} 6. Bg2 {[%emt 0:01:03]} e5 {[%emt 0:07:45]} 7. O-O {[%emt 0:02:09]} Nge7 {[%emt 0:00:15]} 8. Nc4 {[%emt 0:05:03]} O-O {[%emt 0:03:09]} 9. Nh4 {[%emt 0:10:25]} Be6 {[%emt 0:13:44]} 10. Ne3 {[%emt 0:07:08]} d5 {[%emt 0:04:56]} 11. c3 {[%emt 0:10:26]} d4 {[%emt 0:01:32]} 12. Nc2 {[%emt 0:01:17]} dxc3 {[%emt 0:04:53]} 13. bxc3 {[%emt 0:00:10]} c4 {[%emt 0:03:55]} 14. Ne1 {[%emt 0:06:20]} Na5 {[%emt 0:07:56]} 15. Ba3 {[%emt 0:07:48]} Re8 {[%emt 0:01:14]} 16. Nhf3 {[%emt 0:05:42]} cxd3 {[%emt 0:05:21]} 17. Nxd3 {[%emt 0:02:40]} Bc4 {[%emt 0:02:05]} 18. Nfe1 {[%emt 0:02:21]} Qd7 {[%emt 0:07:29]} 19. Qc2 {[%emt 0:01:17]} b6 {[%emt 0:00:30]} 20. Rd1 {[%emt 0:01:58]} Qe6 {[%emt 0:00:35]} 21. Nb4 {[%emt 0:06:07]} Bxf1 {[%emt 0:03:34]} 22. Bxf1 {[%emt 0:00:12]} Red8 {[%emt 0:00:45]} 23. Bd3 {[%emt 0:05:57]} Rac8 {[%emt 0:02:05]} 24. Bb2 {[%emt 0:05:21]} Nc4 {[%emt 0:03:24]} 25. Bxc4 {[%emt 0:05:18]} Qxc4 {[%emt 0:00:11]} 26. Rxd8+ {[%emt 0:02:04]} Rxd8 {[%emt 0:00:02]} 27. f3 {[%emt 0:01:31]} Bh6 {[%emt 0:04:35]} 28. Nbd3 {[%emt 0:02:18]} Nc6 {[%emt 0:01:41]} 29. Kg2 {[%emt 0:03:53]} Qxa2 {[%emt 0:02:56]} 30. Qf2 {[%emt 0:01:25]} Qc4 {[%emt 0:00:41]} 31. Qc2 {[%emt 0:00:30]} b5 {[%emt 0:01:44]} 32. Qb1 {[%emt 0:02:46]} a5 {[%emt 0:00:46]} 33. Ba1 {[%emt 0:00:32]} Bd2 {[%emt 0:00:37]} 34. Kf2 {[%emt 0:00:15]} Bxe1+ {[%emt 0:00:39]} 35. Nxe1 {[%emt 0:00:01]} Rd2+ {[%emt 0:00:12]} 0-1

[Event "XXVII RUS-chT Women 2020"]
[Site "Sochi"]
[Date "2020.11.21"]
[Round "3.22"]
[White "Zhurova, Anna"]
[Black "Gubernatorova, Lyudmila"]
[Result "1/2-1/2"]
[ECO "B24"]
[WhiteElo "2078"]
[BlackElo "2200"]
[Annotator "ChessBase"]
[PlyCount "64"]
[EventDate "2020.11.19"]
[EventType "team-tourn"]
[EventCountry "RUS"]
[SourceTitle "playchess.com"]
[Source "ChessBase"]
[SourceQuality "1"]
[TimeControl "40/5400+30:1800+30"]

1. e4 {[%emt 0:00:00]} c5 {[%emt 0:00:00]} 2. Nc3 {[%emt 0:00:22]} Nc6 {[%emt 0:00:00]} 3. g3 {[%emt 0:00:27]} e6 {[%emt 0:00:36]} 4. Bg2 {[%emt 0:00:09]} Nf6 {[%emt 0:00:09]} 5. Nge2 {[%emt 0:00:26]} d5 {[%emt 0:00:30]} 6. exd5 {[%emt 0:00:08]} exd5 {[%emt 0:00:07]} 7. d4 {[%emt 0:00:04]} cxd4 {[%emt 0:01:33]} 8. Nxd4 {[%emt 0:00:14]} Bg4 {[%emt 0:00:13]} 9. Nde2 {[%emt 0:05:57]} Bxe2 {[%emt 0:22:58]} 10. Qxe2+ {[%emt 0:03:37]} Be7 {[%emt 0:00:11]} 11. O-O {[%emt 0:00:10]} O-O {[%emt 0:00:52]} 12. Rd1 {[%emt 0:00:44]} d4 {[%emt 0:01:37]} 13. Nb5 {[%emt 0:03:06]} Qb6 {[%emt 0:05:26]} 14. Bxc6 {[%emt 0:04:39]} bxc6 {[%emt 0:01:57]} 15. Nxd4 {[%emt 0:00:10]} Rfe8 {[%emt 0:07:48]} 16. Qf3 {[%emt 0:07:15]} Bc5 {[%emt 0:07:31]} 17. Nb3 {[%emt 0:11:09]} Re6 {[%emt 0:07:57]} 18. Nxc5 {[%emt 0:09:16]} Qxc5 {[%emt 0:00:13]} 19. Be3 {[%emt 0:01:33]} Qxc2 {[%emt 0:00:52]} 20. Rac1 {[%emt 0:00:23]} Qa4 {[%emt 0:03:39]} 21. Rd4 {[%emt 0:02:06]} Qxa2 {[%emt 0:01:28]} 22. Rxc6 {[%emt 0:01:07]} Rae8 {[%emt 0:02:52]} 23. Rxe6 {[%emt 0:04:00]} Qxe6 {[%emt 0:00:22]} 24. Ra4 {[%emt 0:00:30]} Qb3 {[%emt 0:01:24]} 25. Rxa7 {[%emt 0:02:15]} Qxb2 {[%emt 0:00:13]} 26. Ra8 {[%emt 0:02:16]} Qb5 {[%emt 0:02:29]} 27. Rxe8+ {[%emt 0:00:26]} Qxe8 {[%emt 0:04:27]} 28. Kg2 {[%emt 0:02:12]} Qe4 {[%emt 0:00:21]} 29. Qxe4 {[%emt 0:00:04]} Nxe4 {[%emt 0:00:06]} 30. Kf3 {[%emt 0:00:10]} Nf6 {[%emt 0:00:11]} 31. Kg2 {[%emt 0:00:03]} Ne4 {[%emt 0:00:08]} 32. Kf3 {[%emt 0:00:04]} Nf6 {[%emt 0:00:05]} 1/2-1/2

[Event "XXVII RUS-chT Women 2020"]
[Site "Sochi"]
[Date "2020.11.21"]
[Round "3.23"]
[White "Dorokhina, Elizaveta"]
[Black "Shestakova, Ekaterina"]
[Result "1-0"]
[ECO "B31"]
[WhiteElo "1824"]
[BlackElo "1966"]
[Annotator "NA"]
[PlyCount "59"]
[EventDate "2020.11.19"]
[EventType "team-tourn"]
[EventCountry "RUS"]
[SourceTitle "playchess.com"]
[Source "ChessBase"]
[SourceQuality "1"]
[TimeControl "40/5400+30:1800+30"]

1. e4 {[%emt 0:00:00]} c5 {[%emt 0:00:00]} 2. Nf3 {[%emt 0:00:44]} Nc6 {[%emt 0:00:00]} 3. Bb5 {[%emt 0:02:36]} g6 {[%emt 0:00:12]} 4. O-O {[%emt 0:02:38]} Bg7 {[%emt 0:00:08]} 5. Re1 {[%emt 0:01:48]} e5 {[%emt 0:00:59]} 6. c3 {[%emt 0:03:27]} Nge7 {[%emt 0:01:40]} 7. d4 {[%emt 0:03:42]} cxd4 {[%emt 0:00:54]} 8. cxd4 {[%emt 0:00:29]} Nxd4 {[%emt 0:00:10]} 9. Nxd4 {[%emt 0:00:46]} exd4 {[%emt 0:00:04]} 10. e5 {[%emt 0:01:28]} O-O {[%emt 0:04:05]} 11. Bg5 {[%emt 0:02:21]} Qb6 {[%emt 0:07:01]} 12. Bxe7 {[%emt 0:02:16]} Re8 {[%emt 0:01:40]} 13. Bf6 {[%emt 0:00:43]} Qxb5 {[%emt 0:00:24]} 14. Bxg7 {[%emt 0:00:18]} Kxg7 {[%emt 0:05:38]} 15. Qxd4 {[%emt 0:00:34]} Re6 {[%emt 0:18:28]} 16. Nc3 {[%emt 0:06:30]} Qb6 {[%emt 0:04:28]} 17. Qf4 {[%emt 0:07:04]} d6 {[%emt 0:07:48]} 18. Nd5 {[%emt 0:02:56]} Qa5 {[%emt 0:18:26]} 19. Qd4 {[%emt 0:02:26]} Kg8 {[%emt 0:08:16]} 20. b4 {[%emt 0:13:20]} Qd8 {[%emt 0:01:35]} 21. Nf6+ {[%emt 0:01:08]} Kg7 {[%emt 0:01:58]} 22. Qh4 {[%emt 0:00:42]} Qh8 {[%emt 0:01:05]} 23. Nd5 {[%emt 0:01:56]} Bd7 {[%emt 0:04:06]} 24. exd6 {[%emt 0:02:05]} Rae8 {[%emt 0:03:00]} 25. Rxe6 {[%emt 0:02:14]} Rxe6 {[%emt 0:00:02]} 26. Qd4+ {[%emt 0:00:15]} f6 {[%emt 0:00:18]} 27. Nf4 {[%emt 0:01:11]} Re5 {[%emt 0:00:48]} 28. Nd3 {[%emt 0:00:31]} Re6 {[%emt 0:00:54]} 29. Nc5 {[%emt 0:00:21]} Qe8 {[%emt 0:01:38]} 30. Nxe6+ {[%emt 0:00:32]} 1-0

[Event "XXVII RUS-chT Women 2020"]
[Site "Sochi"]
[Date "2020.11.21"]
[Round "3.24"]
[White "Lesnykh, Zhanna"]
[Black "Tinina, Kristina"]
[Result "1-0"]
[ECO "B53"]
[WhiteElo "1755"]
[BlackElo "1678"]
[Annotator "NA"]
[PlyCount "57"]
[EventDate "2020.11.19"]
[EventType "team-tourn"]
[EventCountry "RUS"]
[SourceTitle "playchess.com"]
[Source "ChessBase"]
[SourceQuality "1"]
[TimeControl "40/5400+30:1800+30"]

1. e4 {[%emt 0:00:00]} c5 {[%emt 0:00:00]} 2. Nf3 {[%emt 0:00:00]} d6 {[%emt 0:00:04]} 3. d4 {[%emt 0:00:00]} cxd4 {[%emt 0:00:14]} 4. Qxd4 {[%emt 0:00:00]} Nc6 {[%emt 0:07:16]} 5. Bb5 {[%emt 0:00:00]} Bd7 {[%emt 0:01:08]} 6. Bxc6 {[%emt 0:00:00]} Bxc6 {[%emt 0:00:44]} 7. Nc3 {[%emt 0:00:07]} Nf6 {[%emt 0:11:28]} 8. Bg5 {[%emt 0:00:07]} e5 {[%emt 0:11:22]} 9. Qd3 {[%emt 0:00:13]} h6 {[%emt 0:01:26]} 10. Bxf6 {[%emt 0:00:47]} Qxf6 {[%emt 0:00:07]} 11. Nb5 {[%emt 0:08:06]} Qd8 {[%emt 0:12:29]} 12. O-O-O {[%emt 0:08:21]} a6 {[%emt 0:08:12]} 13. Nxd6+ {[%emt 0:03:13]} Bxd6 {[%emt 0:03:29]} 14. Qxd6 {[%emt 0:00:06]} Qxd6 {[%emt 0:00:16]} 15. Rxd6 {[%emt 0:00:05]} Bxe4 {[%emt 0:04:41]} 16. Nxe5 {[%emt 0:01:57]} Bxg2 {[%emt 0:04:50]} 17. Rg1 {[%emt 0:00:28]} Bh3 {[%emt 0:02:39]} 18. Rxg7 {[%emt 0:01:45]} Ke7 {[%emt 0:01:56]} 19. Rb6 {[%emt 0:01:02]} Be6 {[%emt 0:01:09]} 20. Nxf7 {[%emt 0:13:26]} Rhg8 {[%emt 0:05:30]} 21. Rxb7+ {[%emt 0:08:43]} Kf6 {[%emt 0:00:41]} 22. Rh7 {[%emt 0:05:06]} Rg1+ {[%emt 0:02:09]} 23. Kd2 {[%emt 0:00:06]} Bd5 {[%emt 0:01:34]} 24. Rb6+ {[%emt 0:01:35]} Kf5 {[%emt 0:01:10]} 25. Nxh6+ {[%emt 0:01:36]} Kf4 {[%emt 0:00:59]} 26. Nf7 {[%emt 0:04:18]} Kf3 {[%emt 0:02:48]} 27. Ne5+ {[%emt 0:02:30]} Ke4 {[%emt 0:00:52]} 28. Rh5 {[%emt 0:02:10]} Rg2 {[%emt 0:01:48]} 29. Rb4+ {[%emt 0:00:30]} 1-0

[Event "XXVII RUS-chT Women 2020"]
[Site "Sochi"]
[Date "2020.11.22"]
[Round "4.5"]
[White "Protopopova, Anastasiya"]
[Black "Bodnaruk, Anastasia"]
[Result "0-1"]
[ECO "E71"]
[WhiteElo "2267"]
[BlackElo "2414"]
[Annotator "NA RC"]
[PlyCount "96"]
[EventDate "2020.11.19"]
[EventType "team-tourn"]
[EventCountry "RUS"]
[SourceTitle "playchess.com"]
[Source "ChessBase"]
[SourceQuality "1"]
[TimeControl "40/5400+30:1800+30"]

1. d4 {[%emt 0:00:00]} Nf6 {[%emt 0:00:00]} 2. c4 {[%emt 0:00:00]} g6 {[%emt 0:00:00]} 3. Nc3 {[%emt 0:00:00]} Bg7 {[%emt 0:00:00]} 4. e4 {[%emt 0:00:00]} d6 {[%emt 0:00:00]} 5. h3 {[%emt 0:00:11]} O-O {[%emt 0:00:00]} 6. Nf3 {[%emt 0:00:04]} e5 {[%emt 0:02:08]} 7. d5 {[%emt 0:00:07]} Nh5 {[%emt 0:00:26]} 8. g3 {[%emt 0:00:06]} Qe8 {[%emt 0:02:19]} 9. Be2 {[%emt 0:00:06]} f5 {[%emt 0:00:30]} 10. exf5 {[%emt 0:01:08]} gxf5 {[%emt 0:00:00]} 11. Ng5 {[%emt 0:00:08]} Nf6 12. Rg1 c6 {[%emt 0:04:16]} 13. Be3 {[%emt 0:04:58]} c5 {[%emt 0:48:52]} (13... Na6 $14) 14. Qc2 e4 (14... Na6 $16) 15. g4 {[%emt 0:14:11]} Kh8 {[%emt 0:03:58]} 16. gxf5 {[%emt 0:10:06]} Bxf5 {[%emt 0:01:01]} 17. Bg4 {[%emt 0:03:16]} Nxg4 {[%emt 0:06:21]} 18. hxg4 {[%emt 0:00:06]} Bg6 {[%emt 0:00:02]} 19. Ncxe4 {[%emt 0:02:37]} (19. O-O-O $18) 19... Qe5 {[%emt 0:11:39]} (19... Na6 $14) 20. f4 {[%emt 0:06:11]} Rxf4 {[%emt 0:00:46]} 21. Bxf4 {[%emt 0:00:10]} Qxf4 {[%emt 0:00:04]} 22. Qf2 $11 {[%emt 0:13:44]} (22. Qd2 $18 Qe5 23. O-O-O) 22... Qe5 {[%emt 0:02:16]} 23. Rh1 {[%emt 0:21:09]} Nd7 {[%emt 0:10:31]} 24. Rxh7+ {[%emt 0:00:52]} Kg8 {[%emt 0:00:22]} 25. Rxg7+ {[%emt 0:02:24]} Kxg7 {[%emt 0:04:06]} 26. O-O-O {[%emt 0:00:34]} Rh8 {[%emt 0:01:29]} 27. Ne6+ {[%emt 0:07:32]} Kg8 {[%emt 0:00:19]} 28. Ng3 {[%emt 0:01:08]} Rh3 {[%emt 0:01:42]} 29. Rg1 {[%emt 0:00:09]} Nf6 {[%emt 0:00:45]} 30. g5 {[%emt 0:03:50]} Rh2 {[%emt 0:00:32]} 31. Qxh2 {[%emt 0:01:24]} Qe3+ {[%emt 0:00:01]} 32. Kd1 {[%emt 0:00:02]} Ng4 {[%emt 0:00:54]} 33. Qe2 {[%emt 0:07:03]} Qxg1+ {[%emt 0:00:11]} 34. Nf1 {[%emt 0:00:34]} Bd3 {[%emt 0:00:53]} 35. Qf3 {[%emt 0:01:34]} Qxf1+ {[%emt 0:00:02]} 36. Qxf1 {[%emt 0:00:05]} Bxf1 {[%emt 0:00:02]} 37. b3 {[%emt 0:00:14]} b5 {[%emt 0:01:26]} 38. Ke1 {[%emt 0:00:52]} Bd3 {[%emt 0:00:16]} 39. Kd2 {[%emt 0:00:21]} bxc4 {[%emt 0:00:36]} 40. Kc3 {[%emt 0:00:00]} Ne5 {[%emt 0:00:00]} 41. Nc7 {[%emt 0:01:50]} Kf7 {[%emt 0:11:23]} 42. Nb5 {[%emt 0:01:35]} cxb3 {[%emt 0:04:18]} 43. Nxd6+ {[%emt 0:00:07]} Ke7 {[%emt 0:00:06]} 44. Nc8+ {[%emt 0:00:22]} Kd7 {[%emt 0:00:40]} 45. Nxa7 {[%emt 0:00:08]} bxa2 {[%emt 0:00:23]} 46. Kb2 {[%emt 0:00:04]} Bc4 {[%emt 0:00:45]} 47. d6 {[%emt 0:00:23]} Nd3+ {[%emt 0:00:26]} 48. Ka1 {[%emt 0:00:06]} Nb4 {[%emt 0:00:14]} 0-1

[Event "XXVII RUS-chT Women 2020"]
[Site "Sochi"]
[Date "2020.11.22"]
[Round "4.6"]
[White "Ovod, Evgenija"]
[Black "Lysenko, Margarita"]
[Result "1-0"]
[ECO "B20"]
[WhiteElo "2338"]
[BlackElo "2237"]
[Annotator "NA"]
[PlyCount "79"]
[EventDate "2020.11.19"]
[EventType "team-tourn"]
[EventCountry "RUS"]
[SourceTitle "playchess.com"]
[Source "ChessBase"]
[SourceQuality "1"]
[TimeControl "40/5400+30:1800+30"]

1. e4 {[%emt 0:00:00]} c5 {[%emt 0:00:00]} 2. Ne2 {[%emt 0:00:00]} d6 {[%emt 0:00:09]} 3. g3 {[%emt 0:00:00]} g6 {[%emt 0:04:02]} 4. Bg2 {[%emt 0:00:00]} Bg7 {[%emt 0:00:12]} 5. c3 {[%emt 0:00:01]} Nc6 {[%emt 0:01:22]} 6. d4 {[%emt 0:00:05]} cxd4 {[%emt 0:04:36]} 7. cxd4 {[%emt 0:00:04]} Bg4 {[%emt 0:09:48]} 8. f3 {[%emt 0:06:46]} Bd7 {[%emt 0:01:34]} 9. Nbc3 {[%emt 0:00:17]} Nf6 {[%emt 0:07:21]} 10. Be3 {[%emt 0:08:40]} O-O {[%emt 0:08:27]} 11. O-O {[%emt 0:03:18]} e5 {[%emt 0:16:11]} 12. d5 {[%emt 0:01:51]} Ne7 {[%emt 0:02:54] [#]} 13. a4 $146 {[%emt 0:00:09]} ({Predecessor:} 13. Qb3 b6 14. Nb5 Ne8 15. Qb4 Nc8 16. Rac1 a6 17. Na3 b5 18. Qd2 a5 19. Qd3 {0-1 (49) Corentin,L (1902)-Zagrebelny,S (2481) Cappelle-la-Grande 2011}) 13... Ne8 {[%emt 0:02:51]} 14. a5 {[%emt 0:00:47]} Nc7 {[%emt 0:01:00]} 15. Qb3 {[%emt 0:01:09]} Qb8 {[%emt 0:02:02]} 16. Rfc1 {[%emt 0:07:05]} Kh8 {[%emt 0:05:09]} 17. Qa3 {[%emt 0:02:54]} Ne8 {[%emt 0:04:59]} 18. Qb4 {[%emt 0:10:12]} f5 {[%emt 0:01:48]} 19. Ra3 {[%emt 0:01:09]} Nf6 {[%emt 0:04:17]} 20. h3 {[%emt 0:04:12]} Nh5 {[%emt 0:06:52]} 21. Rb3 $16 {[%emt 0:05:58]} Nxg3 {[%emt 0:02:33]} 22. Qxb7 {[%emt 0:00:19]} Nxe2+ {[%emt 0:05:02]} 23. Nxe2 {[%emt 0:00:04]} Qd8 {[%emt 0:00:54]} 24. Qc7 {[%emt 0:08:06]} Bc8 {[%emt 0:04:34]} 25. Qxd8 {[%emt 0:07:10]} Rxd8 {[%emt 0:00:02]} 26. Rc7 {[%emt 0:00:12]} Ng8 {[%emt 0:01:35]} 27. Rxa7 {[%emt 0:02:21]} Ba6 {[%emt 0:00:47]} 28. Rxa8 {[%emt 0:03:39]} Rxa8 {[%emt 0:00:02]} 29. Nc3 {[%emt 0:00:04]} Bf6 {[%emt 0:01:30]} 30. Ra3 {[%emt 0:01:59]} Bd8 {[%emt 0:01:04]} 31. b4 {[%emt 0:00:35]} Bc4 {[%emt 0:00:31]} 32. Bf1 {[%emt 0:00:24]} Bxf1 {[%emt 0:00:09]} 33. Kxf1 {[%emt 0:00:07]} Ne7 {[%emt 0:00:18]} 34. a6 {[%emt 0:07:14]} Nc8 {[%emt 0:00:09]} 35. a7 {[%emt 0:00:26]} Kg7 {[%emt 0:00:28]} 36. Ra6 {[%emt 0:01:19]} Kf7 {[%emt 0:00:09]} 37. b5 {[%emt 0:01:21]} Ke7 {[%emt 0:00:42]} 38. Na4 {[%emt 0:01:00]} f4 {[%emt 0:01:01]} 39. b6 {[%emt 0:03:48]} Nxa7 {[%emt 0:00:49]} 40. Rxa7+ {[%emt 0:00:00]} 1-0

[Event "XXVII RUS-chT Women 2020"]
[Site "Sochi"]
[Date "2020.11.22"]
[Round "4.7"]
[White "Sudakova, Irina"]
[Black "Belenkaya, Dina"]
[Result "0-1"]
[ECO "B10"]
[WhiteElo "2288"]
[BlackElo "2283"]
[Annotator "NA"]
[PlyCount "68"]
[EventDate "2020.11.19"]
[EventType "team-tourn"]
[EventCountry "RUS"]
[SourceTitle "playchess.com"]
[Source "ChessBase"]
[SourceQuality "1"]
[TimeControl "40/5400+30:1800+30"]

1. e4 {[%emt 0:00:00]} c6 {[%emt 0:00:00]} 2. Nc3 {[%emt 0:00:00]} d5 {[%emt 0:00:01]} 3. Nf3 {[%emt 0:00:16]} dxe4 {[%emt 0:01:38]} 4. Nxe4 {[%emt 0:00:16]} Nf6 {[%emt 0:00:34]} 5. Qe2 {[%emt 0:00:34]} Nxe4 {[%emt 0:00:41]} 6. Qxe4 {[%emt 0:00:13]} Qd5 {[%emt 0:00:27]} 7. Qh4 {[%emt 0:07:25]} Bf5 {[%emt 0:02:17]} 8. Bc4 {[%emt 0:03:36]} Qd6 {[%emt 0:03:45]} 9. O-O {[%emt 0:08:34]} e6 {[%emt 0:01:07]} 10. d3 {[%emt 0:05:13]} Be7 {[%emt 0:02:01]} 11. Qd4 $11 {[%emt 0:07:41]} Nd7 {[%emt 0:05:31]} 12. Qxg7 {[%emt 0:20:53]} O-O-O {[%emt 0:27:38]} 13. Qd4 {[%emt 0:01:15]} Qxd4 {[%emt 0:06:01]} 14. Nxd4 {[%emt 0:00:30]} Bg6 {[%emt 0:01:05]} 15. Ne2 {[%emt 0:07:55]} Bf6 {[%emt 0:05:53]} 16. a4 {[%emt 0:03:28]} Rhg8 {[%emt 0:01:39]} 17. a5 {[%emt 0:04:08]} h5 {[%emt 0:06:23]} 18. Be3 {[%emt 0:07:35]} a6 {[%emt 0:09:58]} 19. f4 {[%emt 0:04:51]} h4 {[%emt 0:01:43]} 20. c3 {[%emt 0:02:00]} Rg7 {[%emt 0:02:23]} 21. Rf2 {[%emt 0:02:34]} Rdg8 {[%emt 0:01:52]} 22. Re1 {[%emt 0:03:11]} Bf5 {[%emt 0:00:41]} 23. Kh1 {[%emt 0:01:38]} c5 {[%emt 0:02:43]} 24. Nc1 {[%emt 0:02:58]} Be7 {[%emt 0:01:34]} 25. Nb3 {[%emt 0:00:10]} Kc7 {[%emt 0:01:57]} 26. Nd2 {[%emt 0:02:23]} Nf6 {[%emt 0:00:26]} 27. Nf3 {[%emt 0:01:43]} Ng4 {[%emt 0:05:03]} 28. Rc2 {[%emt 0:00:01]} Nxe3 {[%emt 0:00:54]} 29. Rxe3 {[%emt 0:00:01]} Rg4 {[%emt 0:00:25]} 30. b4 {[%emt 0:01:34]} Rxf4 {[%emt 0:00:22]} 31. Rb2 {[%emt 0:00:55]} Bf6 {[%emt 0:02:42]} 32. b5 {[%emt 0:01:08]} Bxc3 {[%emt 0:01:03]} 33. Ra2 {[%emt 0:00:02]} axb5 {[%emt 0:01:57]} 34. Bxb5 {[%emt 0:00:01]} Rb4 {[%emt 0:00:14]} 0-1

[Event "XXVII RUS-chT Women 2020"]
[Site "Sochi"]
[Date "2020.11.22"]
[Round "4.9"]
[White "Vasilevich, Tatjana"]
[Black "Zherebtsova, Alexandra"]
[Result "1/2-1/2"]
[ECO "A48"]
[WhiteElo "2353"]
[BlackElo "2204"]
[Annotator "NA"]
[PlyCount "82"]
[EventDate "2020.11.19"]
[EventType "team-tourn"]
[EventCountry "RUS"]
[SourceTitle "playchess.com"]
[Source "ChessBase"]
[SourceQuality "1"]
[TimeControl "40/5400+30:1800+30"]

1. d4 {[%emt 0:00:00]} Nf6 {[%emt 0:00:00]} 2. Nf3 {[%emt 0:00:17]} g6 {[%emt 0:00:08]} 3. c4 {[%emt 0:00:18]} Bg7 {[%emt 0:00:28]} 4. Nc3 {[%emt 0:00:15]} d5 {[%emt 0:00:06]} 5. cxd5 {[%emt 0:03:30]} Nxd5 {[%emt 0:00:02]} 6. Bd2 {[%emt 0:02:19]} Nb6 {[%emt 0:01:56]} 7. Bf4 {[%emt 0:01:33]} c5 {[%emt 0:18:02]} 8. e4 {[%emt 0:12:19]} cxd4 {[%emt 0:13:21]} 9. Nb5 {[%emt 0:00:19]} Na6 {[%emt 0:01:15]} 10. Nbxd4 {[%emt 0:00:53]} O-O {[%emt 0:02:00]} 11. Be3 {[%emt 0:11:45]} Bg4 {[%emt 0:09:37]} 12. Be2 {[%emt 0:09:17]} Rc8 {[%emt 0:18:12]} 13. O-O {[%emt 0:14:56]} Nc4 {[%emt 0:02:26]} 14. Rb1 {[%emt 0:08:13]} Nxe3 {[%emt 0:01:09]} 15. fxe3 {[%emt 0:00:02]} Nc5 {[%emt 0:03:39]} 16. h3 $17 {[%emt 0:01:53]} Bd7 {[%emt 0:02:11]} 17. Nd2 {[%emt 0:04:27]} Ba4 {[%emt 0:03:52]} 18. N4b3 {[%emt 0:00:24]} Nxb3 {[%emt 0:02:58]} 19. axb3 {[%emt 0:01:20]} Bc6 {[%emt 0:00:52]} 20. b4 {[%emt 0:01:51]} Qd7 {[%emt 0:03:21]} 21. Bg4 {[%emt 0:08:03]} e6 {[%emt 0:00:26]} 22. Nc4 {[%emt 0:01:13]} Qxd1 {[%emt 0:07:50]} 23. Rbxd1 {[%emt 0:00:34]} Ba4 {[%emt 0:01:15]} 24. Rc1 {[%emt 0:00:52]} Rfd8 {[%emt 0:02:43]} 25. Na5 {[%emt 0:09:46]} Bb5 {[%emt 0:02:49]} 26. Rfd1 {[%emt 0:01:20]} Rxd1+ {[%emt 0:01:20]} 27. Rxd1 {[%emt 0:00:04]} b6 {[%emt 0:00:14]} 28. Nb7 {[%emt 0:00:25]} Bc6 {[%emt 0:01:06]} 29. Nd8 {[%emt 0:00:39]} Bxe4 {[%emt 0:00:36]} 30. Nxe6 {[%emt 0:00:39]} h5 {[%emt 0:00:27]} 31. Ng5 {[%emt 0:00:54]} hxg4 {[%emt 0:00:23]} 32. Nxe4 {[%emt 0:00:02]} gxh3 {[%emt 0:00:12]} 33. gxh3 {[%emt 0:00:09]} Bxb2 {[%emt 0:00:24]} 34. Rd7 {[%emt 0:00:13]} Rc4 {[%emt 0:01:03]} 35. Nd6 {[%emt 0:01:04]} Rxb4 {[%emt 0:00:16]} 36. Rxa7 {[%emt 0:00:14]} f6 {[%emt 0:00:22]} 37. Nc8 {[%emt 0:00:23]} Bc1 {[%emt 0:00:51]} 38. Ne7+ {[%emt 0:00:10]} Kf8 {[%emt 0:00:10]} 39. Nxg6+ {[%emt 0:00:17]} Ke8 {[%emt 0:00:14]} 40. Re7+ {[%emt 0:00:00]} Kd8 {[%emt 0:00:00]} 41. Re6 {[%emt 0:03:09]} Kd7 {[%emt 0:04:56]} 1/2-1/2